fUSD/lending_fUSD_20250211
["ID","MTS","AMOUNT","RATE_DAILY","PERIOD"]
[352746550,1739286677203,-500.0,0.00016712,2]
[352746551,1739286677212,-500.0,0.00016712,2]
[352746552,1739286677222,-257.95909052,0.00016712,2]
[352746553,1739286677231,-500.0,0.00016712,2]
[352746554,1739286677241,-500.0,0.00016712,2]
[352746555,1739286677250,-500.0,0.00016712,2]
[352746556,1739286677259,-500.0,0.00016712,2]
[352746557,1739286677268,-198.568618,0.00016712,2]
[352746558,1739286677278,-500.0,0.00016712,2]
[352746559,1739286677287,-500.0,0.00016712,2]
[352746560,1739286677297,-500.0,0.00016712,2]
[352746561,1739286677306,-500.0,0.00016712,2]
[352746562,1739286677316,-500.0,0.00016712,2]
[352746563,1739286677325,-815.18,0.00016712,2]
[352746564,1739286677334,-500.0,0.00016712,2]
[352746565,1739286677343,-500.0,0.00016712,2]
[352746566,1739286677353,-500.0,0.00016712,2]
[352746567,1739286677362,-500.0,0.00016712,2]
[352746568,1739286677371,-500.0,0.00016712,2]
[352746569,1739286677380,-500.0,0.00016712,2]
[352746570,1739286677390,-500.0,0.00016712,2]
[352746571,1739286677399,-500.0,0.00016712,2]
[352746572,1739286677410,-500.0,0.00016712,2]
[352746573,1739286677419,-500.0,0.00016712,2]
[352746574,1739286677430,-579.74,0.00016712,2]
[352746575,1739286677440,-500.0,0.00016712,2]
[352746576,1739286677450,-500.0,0.00016712,2]
[352746577,1739286677460,-500.0,0.00016712,2]
[352746578,1739286677470,-500.0,0.00016712,2]
[352746579,1739286677480,-500.0,0.00016712,2]
[352746580,1739286677490,-500.0,0.00016712,2]
[352746581,1739286677500,-500.0,0.00016712,2]
[352746582,1739286677509,-500.0,0.00016712,2]
[352746583,1739286677519,-500.0,0.00016712,2]
[352746584,1739286677529,-500.0,0.00016712,2]
[352746585,1739286677538,-500.0,0.00016712,2]
[352746586,1739286677548,-500.0,0.00016712,2]
[352746587,1739286677558,-1038.11,0.00016712,2]
[352746588,1739286677567,-500.0,0.00016712,2]
[352746589,1739286677577,-500.0,0.00016712,2]
[352746590,1739286677586,-500.0,0.00016712,2]
[352746591,1739286677596,-500.0,0.00016712,2]
[352746592,1739286677606,-500.0,0.00016712,2]
[352746593,1739286677615,-500.0,0.00016712,2]
[352746594,1739286677624,-500.0,0.00016712,2]
[352746595,1739286677634,-529.8988201,0.00016712,2]
[352746596,1739286677643,-500.0,0.00016712,2]
[352746597,1739286677653,-500.0,0.00016712,2]
[352746598,1739286677663,-500.0,0.00016712,2]
[352746599,1739286677674,-227.2556036,0.00016712,2]
[352746600,1739286677684,-500.0,0.00016712,2]
[352746601,1739286677694,-500.0,0.00016712,2]
[352746602,1739286677703,-668.27,0.00016712,2]
[352746603,1739286677713,-505.05866908,0.00016712,2]
[352746604,1739286677723,-527.82940212,0.00016712,2]
[352746605,1739286677733,-511.51214902,0.00016712,2]
[352746606,1739286677743,-500.0,0.00016712,2]
[352746607,1739286677753,-500.0,0.00016712,2]
[352746608,1739286677763,-500.0,0.00016712,2]
[352746609,1739286677773,-500.0,0.00016712,2]
[352746610,1739286677782,-500.0,0.00016712,2]
[352746611,1739286677792,-500.0,0.00016712,2]
[352746612,1739286677802,-500.0,0.00016712,2]
[352746613,1739286677812,-500.0,0.00016712,2]
[352746614,1739286677826,-500.0,0.00016712,2]
[352746615,1739286677836,-500.0,0.00016712,2]
[352746616,1739286677846,-500.0,0.00016712,2]
[352746617,1739286677857,-500.0,0.00016712,2]
[352746618,1739286677867,-729.69,0.00016712,2]
[352746619,1739286677877,-500.0,0.00016712,2]
[352746620,1739286677887,-500.0,0.00016712,2]
[352746621,1739286677898,-681.02,0.00016712,2]
[352746622,1739286677910,-500.0,0.00016712,2]
[352746623,1739286677920,-500.0,0.00016712,2]
[352746624,1739286677931,-500.0,0.00016712,2]
[352746625,1739286677941,-500.0,0.00016712,2]
[352746626,1739286677952,-500.0,0.00016712,2]
[352746627,1739286677962,-500.0,0.00016712,2]
[352746628,1739286677972,-500.0,0.00016712,2]
[352746629,1739286677982,-500.0,0.00016712,2]
[352746630,1739286677994,-500.0,0.00016712,2]
[352746631,1739286678004,-500.0,0.00016712,2]
[352746632,1739286678014,-500.0,0.00016712,2]
[352746633,1739286678024,-500.0,0.00016712,2]
[352746634,1739286678034,-500.0,0.00016712,2]
[352746635,1739286678044,-500.0,0.00016712,2]
[352746636,1739286678054,-500.0,0.00016712,2]
[352746637,1739286678065,-500.0,0.00016712,2]
[352746638,1739286678076,-786.49,0.00016712,2]
[352746639,1739286678087,-776.03,0.00016712,2]
[352746640,1739286678097,-605.56,0.00016712,2]
[352746641,1739286678108,-500.0,0.00016712,2]
[352746642,1739286678119,-765.12,0.00016712,2]
[352746643,1739286678128,-500.0,0.00016712,2]
[352746644,1739286678138,-367.00166747,0.00016712,2]
[352746645,1739286678149,-500.0,0.00016712,2]
[352746646,1739286678162,-500.0,0.00016712,2]
[352746647,1739286678172,-517.0,0.00016712,2]
[352746648,1739286678183,-500.0,0.00016712,2]
[352746649,1739286678193,-564.501444,0.00016712,2]
[352746650,1739286678203,-500.0,0.00016712,2]
[352746651,1739286678216,-500.0,0.00016712,2]
[352746652,1739286678226,-500.0,0.00016712,2]
[352746653,1739286678236,-500.0,0.00016712,2]
[352746654,1739286678247,-500.0,0.00016712,2]
[352746655,1739286678257,-500.0,0.00016712,2]
[352746656,1739286678267,-500.0,0.00016712,2]
[352746657,1739286678278,-500.0,0.00016712,2]
[352746658,1739286678288,-564.501444,0.00016712,2]
[352746659,1739286678298,-500.0,0.00016712,2]
[352746660,1739286678308,-367.09463054,0.00016712,2]
[352746661,1739286678318,-1426.78,0.00016712,2]
[352746662,1739286678328,-500.0,0.00016712,2]
[352746663,1739286678387,-500.0,0.00016712,2]
[352746664,1739286678398,-500.0,0.00016712,2]
[352746665,1739286678409,-1263.95,0.00016712,2]
[352746666,1739286678419,-763.04,0.00016712,2]
[352746667,1739286678429,-500.0,0.00016712,2]
[352746668,1739286678439,-500.0,0.00016712,2]
[352746669,1739286678451,-500.0,0.00016712,2]
[352746670,1739286678460,-500.0,0.00016712,2]
[352746671,1739286678470,-500.0,0.00016712,2]
[352746672,1739286678479,-500.0,0.00016712,2]
[352746673,1739286678489,-476.691387,0.00016712,2]
[352746674,1739286678499,-500.0,0.00016712,2]
[352746675,1739286678508,-500.0,0.00016712,2]
[352746676,1739286678518,-500.0,0.00016712,2]
[352746677,1739286678528,-500.0,0.00016712,2]
[352746678,1739286678538,-500.0,0.00016712,2]
[352746679,1739286678548,-500.0,0.00016712,2]
[352746680,1739286678558,-476.691387,0.00016712,2]
[352746681,1739286678568,-500.0,0.00016712,2]
[352746682,1739286678577,-500.0,0.00016712,2]
[352746683,1739286678587,-500.0,0.00016712,2]
[352746684,1739286678596,-500.0,0.00016712,2]
[352746685,1739286678605,-500.0,0.00016712,2]
[352746686,1739286678615,-500.0,0.00016712,2]
[352746687,1739286678624,-500.0,0.00016712,2]
[352746688,1739286678633,-610.77,0.00016712,2]
[352746689,1739286678643,-500.0,0.00016712,2]
[352746690,1739286678654,-500.0,0.00016712,2]
[352746691,1739286678663,-500.0,0.00016712,2]
[352746692,1739286678673,-500.0,0.00016712,2]
[352746693,1739286678683,-500.0,0.00016712,2]
[352746694,1739286678692,-500.0,0.00016712,2]
[352746695,1739286678701,-632.25,0.00016712,2]
[352746696,1739286678710,-579.84,0.00016712,2]
[352746697,1739286678719,-500.0,0.00016712,2]
[352746698,1739286678729,-500.0,0.00016712,2]
[352746699,1739286678738,-500.0,0.00016712,2]
[352746700,1739286678748,-500.0,0.00016712,2]
[352746701,1739286678757,-500.0,0.00016712,2]
[352746702,1739286678767,-500.0,0.00016712,2]
[352746703,1739286678776,-500.0,0.00016712,2]
[352746704,1739286678785,-890.02,0.00016712,2]
[352746705,1739286678794,-151.0,0.00016712,2]
[352746706,1739286678802,-500.0,0.00016712,2]
[352746707,1739286678813,-500.0,0.00016712,2]
[352746708,1739286678824,-500.0,0.00016712,2]
[352746709,1739286678834,-500.0,0.00016712,2]
[352746710,1739286678843,-151.0,0.00016712,2]
[352746711,1739286678854,-500.0,0.00016712,2]
[352746712,1739286678863,-500.0,0.00016712,2]
[352746713,1739286678872,-1614.7,0.00016712,2]
[352746714,1739286678881,-3956.045889,0.00016712,2]
[352746715,1739286678891,-500.0,0.00016712,2]
[352746716,1739286678903,-500.0,0.00016712,2]
[352746717,1739286678913,-3956.045889,0.00016712,2]
[352746718,1739286678922,-500.0,0.00016712,2]
[352746719,1739286678931,-500.0,0.00016712,2]
[352746720,1739286678940,-500.0,0.00016712,2]
[352746721,1739286678951,-525.96,0.00016712,2]
[352746722,1739286678960,-500.0,0.00016712,2]
[352746723,1739286678969,-500.0,0.00016712,2]
[352746724,1739286678979,-500.0,0.00016712,2]
[352746725,1739286678988,-451.83108646,0.00016712,2]
[352746726,1739286678997,-500.0,0.00016712,2]
[352746727,1739286679007,-500.0,0.00016712,2]
[352746728,1739286679017,-500.0,0.00016712,2]
[352746729,1739286679027,-500.0,0.00016712,2]
[352746730,1739286679036,-500.0,0.00016712,2]
[352746731,1739286679045,-500.0,0.00016712,2]
[352746732,1739286679054,-500.0,0.00016712,2]
[352746733,1739286679064,-500.0,0.00016712,2]
[352746734,1739286679074,-500.0,0.00016712,2]
[352746735,1739286679083,-500.0,0.00016712,2]
[352746736,1739286679092,-500.0,0.00016712,2]
[352746737,1739286679102,-500.0,0.00016712,2]
[352746738,1739286679111,-500.0,0.00016712,2]
[352746739,1739286679120,-500.0,0.00016712,2]
[352746740,1739286679130,-500.0,0.00016712,2]
[352746741,1739286679139,-535.73,0.00016712,2]
[352746742,1739286679148,-151.0,0.00016712,2]
[352746743,1739286679159,-449.743212,0.00016712,2]
[352746744,1739286679169,-500.0,0.00016712,2]
[352746745,1739286679178,-151.0,0.00016712,2]
[352746746,1739286679188,-500.0,0.00016712,2]
[352746747,1739286679197,-500.0,0.00016712,2]
[352746748,1739286679207,-449.743212,0.00016712,2]
[352746749,1739286679216,-500.0,0.00016712,2]
[352746750,1739286679225,-500.0,0.00016712,2]
[352746751,1739286679235,-500.0,0.00016712,2]
[352746752,1739286679245,-500.0,0.00016712,2]
[352746753,1739286679254,-311.764583,0.00016712,2]
[352746754,1739286679264,-151.0,0.00016712,2]
[352746755,1739286679273,-500.0,0.00016712,2]
[352746756,1739286679282,-970.61,0.00016712,2]
[352746757,1739286679292,-500.0,0.00016712,2]
[352746758,1739286679302,-500.0,0.00016712,2]
[352746759,1739286679312,-311.764583,0.00016712,2]
[352746760,1739286679321,-598.09,0.00016712,2]
[352746761,1739286679331,-1473.24,0.00016712,2]
[352746762,1739286679341,-500.0,0.00016712,2]
[352746763,1739286679351,-618.84,0.00016712,2]
[352746764,1739286679361,-174.9,0.00016712,2]
[352746765,1739286679371,-546.36,0.00016712,2]
[352746766,1739286679380,-500.0,0.00016712,2]
[352746767,1739286679389,-500.0,0.00016712,2]
[352746768,1739286679399,-10000.0,0.00016712,2]
[352746769,1739286679409,-500.0,0.00016712,2]
[352746770,1739286679419,-436.055434,0.00016712,2]
[352746771,1739286679428,-1605.91,0.00016712,2]
[352746772,1739286679438,-500.0,0.00016712,2]
[352746773,1739286679447,-500.0,0.00016712,2]
[352746774,1739286679457,-500.0,0.00016712,2]
[352746775,1739286679466,-500.0,0.00016712,2]
[352746776,1739286679476,-436.055434,0.00016712,2]
[352746777,1739286679486,-10000.0,0.00016712,2]
[352746778,1739286679495,-500.0,0.00016712,2]
[352746779,1739286679505,-500.0,0.00016712,2]
[352746780,1739286679514,-517.95501135,0.00016712,2]
[352746781,1739286679523,-500.0,0.00016712,2]
[352746782,1739286679533,-10000.0,0.00016712,2]
[352746783,1739286679542,-166.58694596,0.00016712,2]
[352746784,1739286679552,-500.0,0.00016712,2]
[352746785,1739286679561,-935.36,0.00016712,2]
[352746786,1739286679571,-1200.0,0.00016712,2]
[352746787,1739286679581,-10000.0,0.00016712,2]
[352746788,1739286679591,-500.0,0.00016712,2]
[352746789,1739286679600,-500.0,0.00016712,2]
[352746790,1739286679610,-500.0,0.00016712,2]
[352746791,1739286679619,-609.25,0.00016712,2]
[352746792,1739286679629,-500.0,0.00016712,2]
[352746793,1739286679638,-10000.0,0.00016712,2]
[352746794,1739286679648,-500.0,0.00016712,2]
[352746795,1739286679659,-1061.83,0.00016712,2]
[352746796,1739286679669,-500.0,0.00016712,2]
[352746797,1739286679678,-500.0,0.00016712,2]
[352746798,1739286679687,-507.11867569,0.00016712,2]
[352746799,1739286679697,-1177.97,0.00016712,2]
[352746800,1739286679706,-500.0,0.00016712,2]
[352746801,1739286679716,-500.0,0.00016712,2]
[352746802,1739286679726,-790.81,0.00016712,2]
[352746803,1739286679736,-797.71,0.00016712,2]
[352746804,1739286679746,-164.12494597,0.00016712,2]
[352746805,1739286679756,-500.0,0.00016712,2]
[352746806,1739286679766,-872.71,0.00016712,2]
[352746807,1739286679776,-500.0,0.00016712,2]
[352746808,1739286679786,-500.0,0.00016712,2]
[352746809,1739286679795,-500.0,0.00016712,2]
[352746810,1739286679804,-151.0,0.00016712,2]
[352746811,1739286679817,-500.0,0.00016712,2]
[352746812,1739286679828,-385.65604711,0.00016712,2]
[352746813,1739286679837,-1192.85,0.00016712,2]
[352746814,1739286679847,-833.49,0.00016712,2]
[352746815,1739286679858,-500.0,0.00016712,2]
[352746816,1739286679868,-500.0,0.00016712,2]
[352746817,1739286679877,-209.614751,0.00016712,2]
[352746818,1739286679887,-500.0,0.00016712,2]
[352746819,1739286679899,-984.69,0.00016712,2]
[352746820,1739286679910,-652.22,0.00016712,2]
[352746821,1739286679920,-852.49,0.00016712,2]
[352746822,1739286679930,-209.614751,0.00016712,2]
[352746823,1739286679939,-500.0,0.00016712,2]
[352746824,1739286679949,-500.0,0.00016712,2]
[352746825,1739286679959,-1832.16,0.00016712,2]
[352746826,1739286679969,-597.163111,0.00016712,2]
[352746827,1739286679979,-783.59,0.00016712,2]
[352746828,1739286679989,-362.84164584,0.00016712,2]
[352746829,1739286679999,-768.56,0.00016712,2]
[352746830,1739286680008,-500.0,0.00016712,2]
[352746831,1739286680019,-500.0,0.00016712,2]
[352746832,1739286680029,-931.3,0.00016712,2]
[352746833,1739286680039,-500.0,0.00016712,2]
[352746834,1739286680049,-597.163111,0.00016712,2]
[352746835,1739286680058,-500.0,0.00016712,2]
[352746836,1739286680068,-500.0,0.00016712,2]
[352746837,1739286680078,-500.0,0.00016712,2]
[352746838,1739286680087,-500.0,0.00016712,2]
[352746839,1739286680097,-500.0,0.00016712,2]
[352746840,1739286680107,-842.458716,0.00016712,2]
[352746841,1739286680116,-1114.49,0.00016712,2]
[352746842,1739286680126,-590.19,0.00016712,2]
[352746843,1739286680135,-842.458716,0.00016712,2]
[352746844,1739286680145,-151.0,0.00016712,2]
[352746845,1739286680158,-500.0,0.00016712,2]
[352746846,1739286680167,-500.0,0.00016712,2]
[352746847,1739286680177,-913.97,0.00016712,2]
[352746848,1739286680187,-500.0,0.00016712,2]
[352746849,1739286680197,-974.56,0.00016712,2]
[352746850,1739286680207,-1325.53,0.00016712,2]
[352746851,1739286680216,-500.0,0.00016712,2]
[352746852,1739286680226,-500.0,0.00016712,2]
[352746853,1739286680236,-500.0,0.00016712,2]
[352746854,1739286680246,-823.38,0.00016712,2]
[352746855,1739286680256,-500.0,0.00016712,2]
[352746856,1739286680265,-862.09,0.00016712,2]
[352746857,1739286680275,-500.0,0.00016712,2]
[352746858,1739286680285,-1435.14,0.00016712,2]
[352746859,1739286680295,-500.0,0.00016712,2]
[352746860,1739286680305,-699.57,0.00016712,2]
[352746861,1739286680314,-500.0,0.00016712,2]
[352746862,1739286680323,-500.0,0.00016712,2]
[352746863,1739286680333,-522.73,0.00016712,2]
[352746864,1739286680342,-803.99,0.00016712,2]
[352746865,1739286680352,-500.0,0.00016712,2]
[352746866,1739286680361,-500.0,0.00016712,2]
[352746867,1739286680371,-500.0,0.00016712,2]
[352746868,1739286680380,-1172.84,0.00016712,2]
[352746869,1739286680389,-500.0,0.00016712,2]
[352746870,1739286680399,-500.0,0.00016712,2]
[352746871,1739286680410,-151.0,0.00016712,2]
[352746872,1739286680421,-938.61,0.00016712,2]
[352746873,1739286680430,-2710.08,0.00016712,2]
[352746874,1739286680440,-500.0,0.00016712,2]
[352746875,1739286680450,-988.29,0.00016712,2]
[352746876,1739286680459,-151.0,0.00016712,2]
[352746877,1739286680469,-821.46,0.00016712,2]
[352746878,1739286680478,-500.0,0.00016712,2]
[352746879,1739286680487,-500.0,0.00016712,2]
[352746880,1739286680497,-500.0,0.00016712,2]
[352746881,1739286680507,-511.4,0.00016712,2]
[352746882,1739286680517,-500.0,0.00016712,2]
[352746883,1739286680527,-1570.61,0.00016712,2]
[352746884,1739286680537,-4234.42,0.00016712,2]
[352746885,1739286680546,-500.0,0.00016712,2]
[352746886,1739286680556,-500.0,0.00016712,2]
[352746887,1739286680567,-1916.32,0.00016712,2]
[352746888,1739286680576,-988.03,0.00016712,2]
[352746889,1739286680586,-500.0,0.00016712,2]
[352746890,1739286680595,-500.0,0.00016712,2]
[352746891,1739286680605,-500.0,0.00016712,2]
[352746892,1739286680615,-500.0,0.00016712,2]
[352746893,1739286680625,-500.0,0.00016712,2]
[352746894,1739286680634,-500.0,0.00016712,2]
[352746895,1739286680645,-971.31,0.00016712,2]
[352746896,1739286680655,-500.0,0.00016712,2]
[352746897,1739286680665,-158.927127,0.00016712,2]
[352746898,1739286680675,-500.0,0.00016712,2]
[352746899,1739286680684,-500.0,0.00016712,2]
[352746900,1739286680693,-500.0,0.00016712,2]
[352746901,1739286680703,-500.0,0.00016712,2]
[352746902,1739286680712,-1213.39,0.00016712,2]
[352746903,1739286680722,-158.927127,0.00016712,2]
[352746904,1739286680732,-549.8,0.00016712,2]
[352746905,1739286680742,-1031.13,0.00016712,2]
[352746906,1739286680751,-500.0,0.00016712,2]
[352746907,1739286680761,-500.0,0.00016712,2]
[352746908,1739286680771,-2804.1,0.00016712,2]
[352746909,1739286680781,-500.0,0.00016712,2]
[352746910,1739286680794,-1587.28,0.00016712,2]
[352746911,1739286680803,-500.0,0.00016712,2]
[352746912,1739286680813,-1986.63,0.00016712,2]
[352746913,1739286680826,-1611.51,0.00016712,2]
[352746914,1739286680836,-230.94904324,0.00016712,2]
[352746915,1739286680845,-2263.75,0.00016712,2]
[352746916,1739286680855,-500.0,0.00016712,2]
[352746917,1739286680866,-1686.274765,0.00016712,2]
[352746918,1739286680876,-500.0,0.00016712,2]
[352746919,1739286680886,-1037.87,0.00016712,2]
[352746920,1739286680896,-1434.59,0.00016712,2]
[352746921,1739286680905,-500.0,0.00016712,2]
[352746922,1739286680915,-484.26,0.00016712,2]
[352746923,1739286680924,-1686.274765,0.00016712,2]
[352746924,1739286680934,-500.0,0.00016712,2]
[352746925,1739286680944,-500.0,0.00016712,2]
[352746926,1739286680953,-500.0,0.00016712,2]
[352746927,1739286680963,-199.55501975,0.00016712,2]
[352746928,1739286680972,-500.0,0.00016712,2]
[352746929,1739286680982,-728.06,0.00016712,2]
[352746930,1739286680994,-500.0,0.00016712,2]
[352746931,1739286681007,-500.0,0.00016712,2]
[352746932,1739286681017,-1200.06,0.00016712,2]
[352746933,1739286681026,-500.0,0.00016712,2]
[352746934,1739286681036,-500.0,0.00016712,2]
[352746935,1739286681045,-500.0,0.00016712,2]
[352746936,1739286681055,-3515.84,0.00016712,2]
[352746937,1739286681065,-500.0,0.00016712,2]
[352746938,1739286681075,-500.0,0.00016712,2]
[352746939,1739286681084,-500.0,0.00016712,2]
[352746940,1739286681094,-1184.27,0.00016712,2]
[352746941,1739286681103,-531.25,0.00016712,2]
[352746942,1739286681113,-500.0,0.00016712,2]
[352746943,1739286681122,-500.0,0.00016712,2]
[352746944,1739286681131,-500.0,0.00016712,2]
[352746945,1739286681140,-500.0,0.00016712,2]
[352746946,1739286681150,-992.21,0.00016712,2]
[352746947,1739286681164,-535.48,0.00016712,2]
[352746948,1739286681173,-1686.61,0.00016712,2]
[352746949,1739286681183,-500.0,0.00016712,2]
[352746950,1739286681192,-500.0,0.00016712,2]
[352746951,1739286681201,-1247.53,0.00016712,2]
[352746952,1739286681211,-500.0,0.00016712,2]
[352746953,1739286681220,-590.4205929,0.00016712,2]
[352746954,1739286681230,-3140.59,0.00016712,2]
[352746955,1739286681239,-911.7,0.00016712,2]
[352746956,1739286681248,-500.0,0.00016712,2]
[352746957,1739286681259,-1308.74,0.00016712,2]
[352746958,1739286681268,-500.0,0.00016712,2]
[352746959,1739286681277,-151.0,0.00016712,2]
[352746960,1739286681286,-500.0,0.00016712,2]
[352746961,1739286681295,-735.75,0.00016712,2]
[352746962,1739286681304,-534.30555416,0.00016712,2]
[352746963,1739286681314,-500.0,0.00016712,2]
[352746964,1739286681323,-710.6,0.00016712,2]
[352746965,1739286681337,-1280.27,0.00016712,2]
[352746966,1739286681348,-500.0,0.00016712,2]
[352746967,1739286681357,-916.91,0.00016712,2]
[352746968,1739286681367,-500.0,0.00016712,2]
[352746969,1739286681376,-612.27,0.00016712,2]
[352746970,1739286681386,-1094.17,0.00016712,2]
[352746971,1739286681395,-661.37,0.00016712,2]
[352746972,1739286681403,-500.0,0.00016712,2]
[352746973,1739286681414,-2224.85,0.00016712,2]
[352746974,1739286681424,-500.0,0.00016712,2]
[352746975,1739286681433,-500.0,0.00016712,2]
[352746976,1739286681442,-1549.99,0.00016712,2]
[352746977,1739286681452,-1382.51,0.00016712,2]
[352746978,1739286681461,-500.0,0.00016712,2]
[352746979,1739286681471,-1189.01,0.00016712,2]
[352746980,1739286681480,-1234.53,0.00016712,2]
[352746981,1739286681489,-500.0,0.00016712,2]
[352746982,1739286681499,-1659.17,0.00016712,2]
[352746983,1739286681508,-1553.04,0.00016712,2]
[352746984,1739286681517,-500.0,0.00016712,2]
[352746985,1739286681527,-373.641843,0.00016712,2]
[352746986,1739286681536,-500.0,0.00016712,2]
[352746987,1739286681546,-500.0,0.00016712,2]
[352746988,1739286681555,-500.0,0.00016712,2]
[352746989,1739286681564,-1543.06,0.00016712,2]
[352746990,1739286681573,-500.0,0.00016712,2]
[352746991,1739286681583,-373.641843,0.00016712,2]
[352746992,1739286681592,-772.37,0.00016712,2]
[352746993,1739286681602,-1723.06,0.00016712,2]
[352746994,1739286681611,-500.0,0.00016712,2]
[352746995,1739286681620,-500.0,0.00016712,2]
[352746996,1739286681630,-696.84,0.00016712,2]
[352746997,1739286681639,-500.0,0.00016712,2]
[352746998,1739286681649,-500.0,0.00016712,2]
[352746999,1739286681665,-500.0,0.00016712,2]
[352747000,1739286681674,-500.0,0.00016712,2]
[352747001,1739286681683,-508.60816115,0.00016712,2]
[352747002,1739286681693,-151.0,0.00016712,2]
[352747003,1739286681702,-1393.35,0.00016712,2]
[352747004,1739286681711,-500.0,0.00016712,2]
[352747005,1739286681720,-1082.05,0.00016712,2]
[352747006,1739286681730,-2992.58,0.00016712,2]
[352747007,1739286681739,-500.0,0.00016712,2]
[352747008,1739286681749,-500.0,0.00016712,2]
[352747009,1739286681758,-500.0,0.00016712,2]
[352747010,1739286681769,-500.0,0.00016712,2]
[352747011,1739286681778,-500.0,0.00016712,2]
[352747012,1739286681788,-644.48,0.00016712,2]
[352747013,1739286681798,-196.94912069,0.00016712,2]
[352747014,1739286681808,-500.0,0.00016712,2]
[352747015,1739286681820,-500.0,0.00016712,2]
[352747016,1739286681830,-151.0,0.00016712,2]
[352747017,1739286681840,-534.85,0.00016712,2]
[352747018,1739286681851,-547.63,0.00016712,2]
[352747019,1739286681861,-1193.6,0.00016712,2]
[352747020,1739286681872,-1824.35,0.00016712,2]
[352747021,1739286681883,-500.0,0.00016712,2]
[352747022,1739286681895,-500.0,0.00016712,2]
[352747023,1739286681911,-500.0,0.00016712,2]
[352747024,1739286681921,-848.86,0.00016712,2]
[352747025,1739286681930,-500.0,0.00016712,2]
[352747026,1739286681940,-500.0,0.00016712,2]
[352747027,1739286681950,-500.0,0.00016712,2]
[352747028,1739286681960,-500.0,0.00016712,2]
[352747029,1739286681970,-1386.27,0.00016712,2]
[352747030,1739286681980,-1026.88,0.00016712,2]
[352747031,1739286681990,-500.0,0.00016712,2]
[352747032,1739286682000,-500.0,0.00016712,2]
[352747033,1739286682009,-500.0,0.00016712,2]
[352747034,1739286682019,-276.934846,0.00016712,2]
[352747035,1739286682029,-500.0,0.00016712,2]
[352747036,1739286682038,-1312.75,0.00016712,2]
[352747037,1739286682047,-500.0,0.00016712,2]
[352747038,1739286682058,-500.0,0.00016712,2]
[352747039,1739286682068,-500.0,0.00016712,2]
[352747040,1739286682078,-276.934846,0.00016712,2]
[352747041,1739286682088,-502.24706696,0.00016712,2]
[352747042,1739286682098,-500.0,0.00016712,2]
[352747043,1739286682107,-1878.17,0.00016712,2]
[352747044,1739286682117,-1325.87,0.00016712,2]
[352747045,1739286682126,-151.0,0.00016712,2]
[352747046,1739286682136,-1410.09,0.00016712,2]
[352747047,1739286682146,-500.0,0.00016712,2]
[352747048,1739286682158,-500.0,0.00016712,2]
[352747049,1739286682168,-1600.98,0.00016712,2]